[Event "FIDE Grand Swiss 2023"]
[Site "Villa Marina, Douglas, Isle of Man"]
[Date "2023.10.30"]
[Round "6.54"]
[White "Fier, Alexandr"]
[Black "Gurel, Ediz"]
[Result "1/2-1/2"]
[WhiteElo "2574"]
[BlackElo "2514"]
[EventDate "2023.10.25"]
[ECO "C43"]
[PlyCount "93"]
[BlackFideId "44507356"]
[TimeControl "40/100 + 20/50 + 15 + 30s/move"]
[WhiteFideId "2107139"]

1.e4 {[%clk 01:40:57] [%emt 00:00:01]} 1...e5 {[%clk 01:40:47] [%emt 00:00:13]} 
2.Nf3 {[%clk 01:41:21] [%emt 00:00:06]} 2...Nf6 {[%clk 01:41:13] [%emt
00:00:05]} 3.d4 {[%clk 01:40:51] [%emt 00:01:00]} 3...Nxe4 {[%clk 01:41:34]
[%emt 00:00:09]} 4.Bd3 {[%clk 01:41:12] [%emt 00:00:09]} 4...d5 {[%clk 01:41:58]
[%emt 00:00:06]} 5.Nxe5 {[%clk 01:41:38] [%emt 00:00:04]} 5...Nd7 {[%clk
01:42:23] [%emt 00:00:06]} 6.Nc3 {[%clk 01:41:47] [%emt 00:00:21]} 6...Bb4 
{[%clk 01:42:36] [%emt 00:00:16]} 7.O-O {[%clk 01:32:55] [%emt 00:09:22]} 
7...Nxe5 {[%clk 01:42:57] [%emt 00:00:09]} 8.dxe5 {[%clk 01:33:20] [%emt
00:00:05]} 8...Nxc3 {[%clk 01:43:24] [%emt 00:00:03]} 9.bxc3 {[%clk 01:33:43]
[%emt 00:00:07]} 9...Bxc3 {[%clk 01:43:51] [%emt 00:00:03]} 10.Rb1 {[%clk
01:34:08] [%emt 00:00:05]} 10...Qh4 {[%clk 01:44:12] [%emt 00:00:09]} 11.Ba3 
{[%clk 01:28:14] [%emt 00:06:24]} 11...a5 {[%clk 01:44:26] [%emt 00:00:16]} 
12.f4 {[%clk 01:17:41] [%emt 00:11:03]} 12...Bb4 {[%clk 01:44:03] [%emt
00:00:53]} 13.Bb2 {[%clk 01:13:31] [%emt 00:04:40]} 13...Bg4 {[%clk 01:43:25]
[%emt 00:01:07]} 14.Qc1 {[%clk 01:11:36] [%emt 00:02:26]} 14...Bc5+ {[%clk
01:43:50] [%emt 00:00:05]} 15.Kh1 {[%clk 01:12:01] [%emt 00:00:06]} 15...Bf2 
{[%clk 01:44:07] [%emt 00:00:13]} 16.Qd2 {[%clk 01:04:44] [%emt 00:07:46]} 
16...Bg3 {[%clk 01:44:32] [%emt 00:00:06]} 17.h3 {[%clk 01:05:10] [%emt
00:00:03]} 17...O-O {[%clk 01:39:55] [%emt 00:05:07]} 18.Bd4 {[%clk 01:00:55]
[%emt 00:04:45]} 18...b6 {[%clk 01:37:27] [%emt 00:02:58]} 19.Bf2 {[%clk
00:58:46] [%emt 00:02:39]} 19...Bxf2 {[%clk 01:37:52] [%emt 00:00:05]} 20.Rxf2 
{[%clk 00:59:13] [%emt 00:00:04]} 20...g6 {[%clk 01:24:32] [%emt 00:13:49]} 
21.f5 {[%clk 00:58:06] [%emt 00:01:37]} 21...Bxf5 {[%clk 01:18:00] [%emt
00:07:03]} 22.Bxf5 {[%clk 00:58:31] [%emt 00:00:04]} 22...gxf5 {[%clk 01:18:27]
[%emt 00:00:03]} 23.Rxf5 {[%clk 00:58:56] [%emt 00:00:05]} 23...Rae8 {[%clk
01:17:26] [%emt 00:01:31]} 24.Rbf1 {[%clk 00:58:41] [%emt 00:00:45]} 24...Re6 
{[%clk 01:11:25] [%emt 00:06:31]} 25.Qxd5 {[%clk 00:59:03] [%emt 00:00:08]} 
25...Qe7 {[%clk 01:11:34] [%emt 00:00:21]} 26.Qf3 {[%clk 00:51:14] [%emt
00:08:19]} 26...Kh8 {[%clk 01:06:51] [%emt 00:05:13]} 27.Qh5 {[%clk 00:50:21]
[%emt 00:01:22]} 27...f6 {[%clk 00:51:34] [%emt 00:15:48]} 28.Qh6 {[%clk
00:48:10] [%emt 00:02:41]} 28...Qg7 {[%clk 00:51:34] [%emt 00:00:30]} 29.Qd2 
{[%clk 00:48:36] [%emt 00:00:04]} 29...Rxe5 {[%clk 00:45:19] [%emt 00:06:45]} 
30.Rxf6 {[%clk 00:48:59] [%emt 00:00:07]} 30...Ree8 {[%clk 00:45:42] [%emt
00:00:08]} 31.Qc3 {[%clk 00:40:24] [%emt 00:09:04]} 31...Rg8 {[%clk 00:38:41]
[%emt 00:07:31]} 32.R1f2 {[%clk 00:37:02] [%emt 00:03:52]} 32...Re6 {[%clk
00:38:06] [%emt 00:01:05]} 33.Kh2 {[%clk 00:36:20] [%emt 00:01:12]} 33...Rxf6 
{[%clk 00:37:19] [%emt 00:01:17]} 34.Qxf6 {[%clk 00:36:45] [%emt 00:00:05]} 
34...Qxf6 {[%clk 00:37:47] [%emt 00:00:02]} 35.Rxf6 {[%clk 00:37:10] [%emt
00:00:05]} 35...Rd8 {[%clk 00:37:51] [%emt 00:00:26]} 36.Rc6 {[%clk 00:36:58]
[%emt 00:00:43]} 36...Rd4 {[%clk 00:36:28] [%emt 00:01:53]} 37.Rxc7 {[%clk
00:37:22] [%emt 00:00:06]} 37...Ra4 {[%clk 00:36:55] [%emt 00:00:03]} 38.Kg3 
{[%clk 00:37:28] [%emt 00:00:23]} 38...Rxa2 {[%clk 00:37:03] [%emt 00:00:22]} 
39.Kf4 {[%clk 00:37:55] [%emt 00:00:03]} 39...Ra3 {[%clk 00:29:20] [%emt
00:08:13]} 40.h4 {[%clk 00:35:48] [%emt 00:02:37]} 40...b5 {[%clk 00:29:36]
[%emt 00:00:15]} 41.g4 {[%clk 00:34:32] [%emt 00:01:46]} 41...Ra4+ {[%clk
00:29:23] [%emt 00:00:42]} 42.Kf5 {[%clk 00:32:20] [%emt 00:02:42]} 42...Rc4 
{[%clk 00:29:06] [%emt 00:00:47]} 43.Rb7 {[%clk 00:32:46] [%emt 00:00:04]} 
43...b4 {[%clk 00:28:56] [%emt 00:00:40]} 44.Ra7 {[%clk 00:33:12] [%emt
00:00:04]} 44...Rxc2 {[%clk 00:28:47] [%emt 00:00:39]} 45.Rxa5 {[%clk 00:33:40]
[%emt 00:00:02]} 45...b3 {[%clk 00:29:10] [%emt 00:00:08]} 46.Rb5 {[%clk
00:34:07] [%emt 00:00:03]} 46...b2 {[%clk 00:29:34] [%emt 00:00:05]} 47.Rb7 
{[%clk 00:34:26] [%emt 00:00:11]} 1/2-1/2

[Event "FIDE Grand Swiss 2023"]
[Site "Villa Marina, Douglas, Isle of Man"]
[Date "2023.10.30"]
[Round "6.55"]
[White "Sanal, Vahap"]
[Black "Greenfeld, Alon"]
[Result "1-0"]
[WhiteElo "2603"]
[BlackElo "2455"]
[EventDate "2023.10.25"]
[ECO "B60"]
[PlyCount "57"]
[BlackFideId "2800039"]
[TimeControl "40/100 + 20/50 + 15 + 30s/move"]
[WhiteFideId "6300545"]

1.e4 {[%clk 01:40:57] [%emt 00:00:03]} 1...c5 {[%clk 01:39:34] [%emt 00:01:25]} 
2.Nf3 {[%clk 01:41:19] [%emt 00:00:07]} 2...d6 {[%clk 01:37:56] [%emt 00:02:10]} 
3.d4 {[%clk 01:41:42] [%emt 00:00:07]} 3...cxd4 {[%clk 01:38:19] [%emt
00:00:07]} 4.Nxd4 {[%clk 01:42:08] [%emt 00:00:04]} 4...Nf6 {[%clk 01:38:37]
[%emt 00:00:10]} 5.Nc3 {[%clk 01:42:33] [%emt 00:00:06]} 5...Nc6 {[%clk
01:38:33] [%emt 00:00:34]} 6.Bg5 {[%clk 01:41:17] [%emt 00:01:45]} 6...g6 
{[%clk 01:37:56] [%emt 00:01:07]} 7.Bb5 {[%clk 01:41:14] [%emt 00:00:34]} 
7...Bd7 {[%clk 01:38:12] [%emt 00:00:15]} 8.Bxf6 {[%clk 01:41:39] [%emt
00:00:05]} 8...exf6 {[%clk 01:38:35] [%emt 00:00:07]} 9.Nf3 {[%clk 01:42:00]
[%emt 00:00:08]} 9...Be6 {[%clk 01:35:36] [%emt 00:03:29]} 10.Qd2 {[%clk
01:41:30] [%emt 00:01:00]} 10...Bg7 {[%clk 01:34:47] [%emt 00:01:19]} 11.Nd4 
{[%clk 01:41:49] [%emt 00:00:11]} 11...O-O {[%clk 01:27:26] [%emt 00:07:51]} 
12.Bxc6 {[%clk 01:33:04] [%emt 00:09:16]} 12...bxc6 {[%clk 01:27:50] [%emt
00:00:06]} 13.O-O {[%clk 01:33:10] [%emt 00:00:24]} 13...Qd7 {[%clk 01:12:13]
[%emt 00:16:07]} 14.Rad1 {[%clk 01:32:50] [%emt 00:00:49]} 14...f5 {[%clk
00:56:59] [%emt 00:15:44]} 15.Rfe1 {[%clk 01:27:49] [%emt 00:05:31]} 15...Rfe8 
{[%clk 00:49:14] [%emt 00:08:16]} 16.h3 {[%clk 01:26:04] [%emt 00:02:14]} 
16...fxe4 {[%clk 00:37:15] [%emt 00:12:29]} 17.Nxe4 {[%clk 01:24:10] [%emt
00:02:24]} 17...Bd5 {[%clk 00:37:13] [%emt 00:00:32]} 18.Nc3 {[%clk 01:22:56]
[%emt 00:01:44]} 18...Bc4 {[%clk 00:37:24] [%emt 00:00:19]} 19.b3 {[%clk
01:21:48] [%emt 00:01:37]} 19...Ba6 {[%clk 00:35:02] [%emt 00:02:53]} 20.Ne4 
{[%clk 01:22:11] [%emt 00:00:08]} 20...f5 {[%clk 00:14:33] [%emt 00:29:27]} 
21.Ng5 {[%clk 01:18:17] [%emt 00:01:20]} 21...Bf6 {[%clk 00:13:39] [%emt
00:01:24]} 22.Nde6 {[%clk 01:10:33] [%emt 00:08:14]} 22...Re7 {[%clk 00:10:14]
[%emt 00:03:55]} 23.Nc5 {[%clk 00:57:49] [%emt 00:13:12]} 23...dxc5 {[%clk
00:10:40] [%emt 00:00:06]} 24.Qxd7 {[%clk 00:58:07] [%emt 00:00:13]} 24...Rxd7 
{[%clk 00:11:06] [%emt 00:00:04]} 25.Rxd7 {[%clk 00:58:31] [%emt 00:00:06]} 
25...Bxg5 {[%clk 00:11:32] [%emt 00:00:05]} 26.c4 {[%clk 00:58:32] [%emt
00:00:27]} 26...Rb8 {[%clk 00:07:16] [%emt 00:04:47]} 27.f4 {[%clk 00:56:10]
[%emt 00:02:52]} 27...Bh4 {[%clk 00:03:52] [%emt 00:03:54]} 28.Re6 {[%clk
00:53:07] [%emt 00:03:32]} 28...Bb7 {[%clk 00:02:57] [%emt 00:01:27]} 29.Kh2 
{[%clk 00:52:29] [%emt 00:01:08]} 1-0

[Event "FIDE Grand Swiss 2023"]
[Site "Villa Marina, Douglas, Isle of Man"]
[Date "2023.10.30"]
[Round "6.56"]
[White "Samunenkov, Ihor"]
[Black "Krasenkow, Michal"]
[Result "1-0"]
[WhiteElo "2531"]
[BlackElo "2531"]
[EventDate "2023.10.25"]
[ECO "B31"]
[PlyCount "85"]
[BlackFideId "1113100"]
[TimeControl "40/100 + 20/50 + 15 + 30s/move"]
[WhiteFideId "14187086"]

1.e4 {[%clk 01:40:56] [%emt 00:00:04]} 1...c5 {[%clk 01:40:27] [%emt 00:00:34]} 
2.Nf3 {[%clk 01:41:16] [%emt 00:00:09]} 2...Nc6 {[%clk 01:40:52] [%emt
00:00:05]} 3.Bb5 {[%clk 01:41:38] [%emt 00:00:08]} 3...g6 {[%clk 01:41:10] [%emt
00:00:12]} 4.O-O {[%clk 01:41:53] [%emt 00:00:14]} 4...Bg7 {[%clk 01:41:37]
[%emt 00:00:04]} 5.c3 {[%clk 01:42:12] [%emt 00:00:12]} 5...Nf6 {[%clk 01:41:17]
[%emt 00:00:50]} 6.Re1 {[%clk 01:42:07] [%emt 00:00:34]} 6...O-O {[%clk
01:41:14] [%emt 00:00:32]} 7.d4 {[%clk 01:42:25] [%emt 00:00:13]} 7...Qb6 
{[%clk 01:40:09] [%emt 00:01:34]} 8.Bxc6 {[%clk 01:31:51] [%emt 00:11:04]} 
8...dxc6 {[%clk 01:39:05] [%emt 00:01:34]} 9.h3 {[%clk 01:31:50] [%emt
00:00:31]} 9...Rd8 {[%clk 01:35:22] [%emt 00:04:12]} 10.Qc2 {[%clk 01:26:23]
[%emt 00:05:58]} 10...Bd7 {[%clk 01:33:02] [%emt 00:02:50]} 11.Be3 {[%clk
01:21:54] [%emt 00:04:58]} 11...cxd4 {[%clk 01:27:47] [%emt 00:05:46]} 12.cxd4 
{[%clk 01:22:13] [%emt 00:00:11]} 12...Be8 {[%clk 01:28:11] [%emt 00:00:06]} 
13.Nc3 {[%clk 01:19:51] [%emt 00:02:52]} 13...a5 {[%clk 01:26:24] [%emt
00:02:17]} 14.Rad1 {[%clk 01:11:05] [%emt 00:09:16]} 14...Qa6 {[%clk 01:17:20]
[%emt 00:09:35]} 15.Qc1 {[%clk 01:09:56] [%emt 00:01:38]} 15...a4 {[%clk
01:16:21] [%emt 00:01:29]} 16.Bh6 {[%clk 01:04:55] [%emt 00:05:30]} 16...Bh8 
{[%clk 01:16:36] [%emt 00:00:15]} 17.Qg5 {[%clk 00:57:03] [%emt 00:08:23]} 
17...b5 {[%clk 01:16:36] [%emt 00:00:30]} 18.e5 {[%clk 00:48:07] [%emt
00:09:25]} 18...b4 {[%clk 01:16:49] [%emt 00:00:17]} 19.Ne4 {[%clk 00:47:18]
[%emt 00:01:20]} 19...Nd5 {[%clk 01:16:12] [%emt 00:01:07]} 20.Rc1 {[%clk
00:44:10] [%emt 00:03:38]} 20...Ra7 {[%clk 01:10:10] [%emt 00:06:32]} 21.h4 
{[%clk 00:42:16] [%emt 00:02:23]} 21...Qc8 {[%clk 01:05:42] [%emt 00:04:58]} 
22.h5 {[%clk 00:38:31] [%emt 00:04:15]} 22...Qf5 {[%clk 01:04:14] [%emt
00:01:58]} 23.hxg6 {[%clk 00:37:59] [%emt 00:01:02]} 23...Qxg6 {[%clk 00:59:31]
[%emt 00:05:14]} 24.Qd2 {[%clk 00:35:28] [%emt 00:03:01]} 24...f5 {[%clk
00:57:21] [%emt 00:02:41]} 25.exf6 {[%clk 00:31:56] [%emt 00:04:00]} 25...exf6 
{[%clk 00:57:40] [%emt 00:00:12]} 26.Ng3 {[%clk 00:26:47] [%emt 00:05:39]} 
26...Bg7 {[%clk 00:56:02] [%emt 00:02:08]} 27.Bxg7 {[%clk 00:21:48] [%emt
00:05:28]} 27...Rxg7 {[%clk 00:56:21] [%emt 00:00:11]} 28.Re6 {[%clk 00:19:21]
[%emt 00:02:56]} 28...Qf7 {[%clk 00:45:23] [%emt 00:11:29]} 29.Rce1 {[%clk
00:17:34] [%emt 00:02:17]} 29...Bd7 {[%clk 00:43:42] [%emt 00:02:12]} 30.Nf5 
{[%clk 00:14:49] [%emt 00:03:15]} 30...Rg6 {[%clk 00:41:48] [%emt 00:02:24]} 
31.Ne7+ {[%clk 00:10:23] [%emt 00:04:56]} 31...Nxe7 {[%clk 00:36:59] [%emt
00:05:20]} 32.Rxe7 {[%clk 00:10:46] [%emt 00:00:06]} 32...Qd5 {[%clk 00:36:21]
[%emt 00:01:07]} 33.Qf4 {[%clk 00:05:24] [%emt 00:05:53]} 33...Rf8 {[%clk
00:33:27] [%emt 00:03:24]} 34.Nh4 {[%clk 00:04:02] [%emt 00:01:51]} 34...Rg7 
{[%clk 00:30:51] [%emt 00:03:06]} 35.Rxg7+ {[%clk 00:03:30] [%emt 00:01:03]} 
35...Kxg7 {[%clk 00:31:18] [%emt 00:00:03]} 36.Re7+ {[%clk 00:03:32] [%emt
00:00:27]} 36...Rf7 {[%clk 00:31:23] [%emt 00:00:26]} 37.Re3 {[%clk 00:03:50]
[%emt 00:00:11]} 37...Rf8 {[%clk 00:27:16] [%emt 00:04:37]} 38.Rg3+ {[%clk
00:03:56] [%emt 00:00:25]} 38...Kf7 {[%clk 00:27:44] [%emt 00:00:01]} 39.Qh6 
{[%clk 00:03:40] [%emt 00:00:46]} 39...Ke8 {[%clk 00:27:24] [%emt 00:00:51]} 
40.Re3+ {[%clk 00:00:59] [%emt 00:03:10]} 40...Be6 {[%clk 00:27:51] [%emt
00:00:03]} 41.f4 {[%clk 00:44:40] [%emt 00:06:50]} 41...Qxd4 {[%clk 01:16:24]
[%emt 00:01:58]} 42.f5 {[%clk 00:44:43] [%emt 00:00:26]} 42...Rg8 {[%clk
01:16:35] [%emt 00:00:18]} 43.Kh2 {[%clk 00:40:34] [%emt 00:04:40]} 1-0

[Event "FIDE Grand Swiss 2023"]
[Site "Villa Marina, Douglas, Isle of Man"]
[Date "2023.10.30"]
[Round "6.57"]
[White "Kolbus, Dietmar"]
[Black "Wu, Li"]
[Result "0-1"]
[WhiteElo "2225"]
[BlackElo "2303"]
[EventDate "2023.10.25"]
[ECO "B31"]
[PlyCount "92"]
[BlackFideId "411086"]
[TimeControl "40/100 + 20/50 + 15 + 30s/move"]
[WhiteFideId "4610628"]

1.e4 {[%clk 01:40:57] [%emt 00:00:03]} 1...c5 {[%clk 01:39:42] [%emt 00:01:19]} 
2.Nf3 {[%clk 01:41:16] [%emt 00:00:10]} 2...Nc6 {[%clk 01:39:51] [%emt
00:00:22]} 3.Bb5 {[%clk 01:41:26] [%emt 00:00:19]} 3...g6 {[%clk 01:40:02] [%emt
00:00:19]} 4.O-O {[%clk 01:40:22] [%emt 00:01:32]} 4...Bg7 {[%clk 01:40:30]
[%emt 00:00:03]} 5.c3 {[%clk 01:30:29] [%emt 00:10:23]} 5...e5 {[%clk 01:37:26]
[%emt 00:03:35]} 6.d3 {[%clk 01:21:18] [%emt 00:09:41]} 6...Nge7 {[%clk
01:36:56] [%emt 00:01:00]} 7.c4 {[%clk 01:10:04] [%emt 00:11:43]} 7...O-O 
{[%clk 01:33:40] [%emt 00:03:46]} 8.Nc3 {[%clk 01:06:13] [%emt 00:04:22]} 
8...d6 {[%clk 01:32:57] [%emt 00:01:14]} 9.Bxc6 {[%clk 01:06:07] [%emt
00:00:35]} 9...bxc6 {[%clk 01:30:50] [%emt 00:02:37]} 10.Ne1 {[%clk 01:04:04]
[%emt 00:02:32]} 10...f5 {[%clk 01:10:29] [%emt 00:20:52]} 11.Bg5 {[%clk
00:48:07] [%emt 00:16:26]} 11...h6 {[%clk 01:06:24] [%emt 00:04:35]} 12.Bxe7 
{[%clk 00:37:30] [%emt 00:11:08]} 12...Qxe7 {[%clk 01:06:50] [%emt 00:00:04]} 
13.Qa4 {[%clk 00:37:03] [%emt 00:00:57]} 13...Qb7 {[%clk 01:07:10] [%emt
00:00:10]} 14.Rb1 {[%clk 00:37:00] [%emt 00:00:33]} 14...a5 {[%clk 01:06:01]
[%emt 00:01:39]} 15.Qd1 {[%clk 00:31:30] [%emt 00:05:58]} 15...f4 {[%clk
00:54:03] [%emt 00:12:30]} 16.f3 {[%clk 00:30:45] [%emt 00:01:14]} 16...g5 
{[%clk 00:54:14] [%emt 00:00:20]} 17.g4 {[%clk 00:26:30] [%emt 00:04:45]} 
17...fxg3 {[%clk 00:54:30] [%emt 00:00:15]} 18.hxg3 {[%clk 00:26:52] [%emt
00:00:06]} 18...h5 {[%clk 00:46:37] [%emt 00:08:24]} 19.Nc2 {[%clk 00:22:42]
[%emt 00:04:40]} 19...Bh3 {[%clk 00:38:16] [%emt 00:08:51]} 20.Rf2 {[%clk
00:23:07] [%emt 00:00:04]} 20...g4 {[%clk 00:38:43] [%emt 00:00:03]} 21.Ne3 
{[%clk 00:23:00] [%emt 00:00:37]} 21...gxf3 {[%clk 00:34:28] [%emt 00:04:46]} 
22.Rxf3 {[%clk 00:23:16] [%emt 00:00:13]} 22...Bh6 {[%clk 00:29:29] [%emt
00:05:30]} 23.Kh2 {[%clk 00:20:37] [%emt 00:03:08]} 23...Qd7 {[%clk 00:27:07]
[%emt 00:02:53]} 24.Qe2 {[%clk 00:18:55] [%emt 00:02:12]} 24...Rxf3 {[%clk
00:25:46] [%emt 00:01:51]} 25.Qxf3 {[%clk 00:19:22] [%emt 00:00:02]} 25...Rf8 
{[%clk 00:26:12] [%emt 00:00:04]} 26.Nf5 {[%clk 00:13:34] [%emt 00:06:17]} 
26...Bxf5 {[%clk 00:26:31] [%emt 00:00:12]} 27.exf5 {[%clk 00:13:56] [%emt
00:00:09]} 27...Rxf5 {[%clk 00:26:58] [%emt 00:00:04]} 28.Qe2 {[%clk 00:12:58]
[%emt 00:01:27]} 28...Qf7 {[%clk 00:24:15] [%emt 00:03:14]} 29.Kg2 {[%clk
00:12:42] [%emt 00:00:45]} 29...Qg6 {[%clk 00:24:09] [%emt 00:00:36]} 30.Kh3 
{[%clk 00:08:54] [%emt 00:04:17]} 30...Kg7 {[%clk 00:14:07] [%emt 00:10:34]} 
31.Rg1 {[%clk 00:06:35] [%emt 00:02:48]} 31...Bf4 {[%clk 00:12:29] [%emt
00:02:09]} 32.Ne4 {[%clk 00:04:08] [%emt 00:02:56]} 32...d5 {[%clk 00:11:20]
[%emt 00:01:39]} 33.Kh2 {[%clk 00:04:23] [%emt 00:00:15]} 33...Bg5 {[%clk
00:09:51] [%emt 00:02:00]} 34.Nf2 {[%clk 00:02:33] [%emt 00:02:20]} 34...Kh6 
{[%clk 00:08:21] [%emt 00:02:01]} 35.Nh3 {[%clk 00:02:38] [%emt 00:00:23]} 
35...Qf6 {[%clk 00:06:20] [%emt 00:02:31]} 36.Kg2 {[%clk 00:01:43] [%emt
00:01:26]} 36...Qe6 {[%clk 00:04:37] [%emt 00:02:13]} 37.Re1 {[%clk 00:01:29]
[%emt 00:00:43]} 37...Kg6 {[%clk 00:03:29] [%emt 00:01:39]} 38.b3 {[%clk
00:01:37] [%emt 00:00:22]} 38...Bh6 {[%clk 00:03:10] [%emt 00:00:49]} 39.Kh2 
{[%clk 00:01:27] [%emt 00:00:39]} 39...Kh7 {[%clk 00:02:45] [%emt 00:00:55]} 
40.Kg2 {[%clk 00:01:17] [%emt 00:00:40]} 40...Qf6 {[%clk 00:01:53] [%emt
00:01:23]} 41.Rh1 {[%clk 00:49:02] [%emt 00:02:43]} 41...Qg6 {[%clk 00:48:51]
[%emt 00:03:33]} 42.Rf1 {[%clk 00:42:20] [%emt 00:07:12]} 42...Rxf1 {[%clk
00:44:23] [%emt 00:04:59]} 43.Kxf1 {[%clk 00:40:45] [%emt 00:02:05]} 43...Qxg3 
{[%clk 00:44:06] [%emt 00:00:47]} 44.Qxh5 {[%clk 00:41:06] [%emt 00:00:08]} 
44...Qxd3+ {[%clk 00:44:25] [%emt 00:00:12]} 45.Kf2 {[%clk 00:39:20] [%emt
00:02:15]} 45...Qc2+ {[%clk 00:44:34] [%emt 00:00:22]} 46.Kg3 {[%clk 00:36:35]
[%emt 00:03:15]} 46...Qg6+ {[%clk 00:44:48] [%emt 00:00:16]} 0-1